[Event "7th Sharjah Masters 2024"]
[Site "Sharjah"]
[Date "2024.05.16"]
[Round "3.17"]
[White "Narayanan S L"]
[Black "Nesterov, Arseniy"]
[Result "0-1"]
[ECO "D35"]
[WhiteElo "2695"]
[BlackElo "2590"]
[Annotator "TA"]
[PlyCount "72"]
[EventDate "2024.05.13"]
[EventType "swiss"]
[EventCountry "UAE"]
[SourceTitle "playchess.com"]
[Source "ChessBase"]
[SourceQuality "1"]
[TimeControl "5400+30"]

{[%evp 15,72,14,23,-14,-16,-15,-7,-24,-22,-26,-28,-32,0,0,0,-3,0,-10,0,-15,-1,-2,-4,-10,-19,-40,-35,-39,-15,-80,-85,-247,-239,-241,-242,-224,-237,-285,-249,-241,-244,-566,-564,-514,-562,-524,-438,-450,-447,-454,-449,-440,-445,-453,-447,-1079,-1074,-791,-640]} 1. c4 {[%emt 0:00:02]} e6 {[%emt 0:00:14]} 2. Nc3 {[%emt 0:00:06]} d5 {[%emt 0:00:05]} 3. d4 {[%emt 0:00:04]} Nf6 {[%emt 0:00:07]} 4. cxd5 {[%emt 0:00:04]} exd5 {[%emt 0:00:04]} 5. Bg5 {[%emt 0:00:04]} c6 {[%emt 0:00:30]} 6. e3 {[%emt 0:00:06]} Be7 {[%emt 0:00:05]} 7. Bd3 {[%emt 0:00:12]} O-O {[%emt 0:00:32]} 8. Nf3 {[%emt 0:00:35]} Re8 {[%emt 0:00:44]} 9. Bf4 {[%emt 0:04:22]} Nh5 {[%emt 0:19:33]} 10. Be5 {[%emt 0:00:13]} Nd7 {[%emt 0:00:21]} 11. Qc2 {[%emt 0:02:03] The position is equal.} (11. g4 $5 Nhf6 12. Qc2 $15) 11... g6 {[%emt 0:01:14]} 12. h3 {[%emt 0:08:22]} Nxe5 {[%emt 0:01:40]} 13. dxe5 {[%emt 0:00:05]} b5 {[%emt 0:19:25]} 14. O-O {[%emt 0:03:19]} Bd7 {[%emt 0:04:26]} 15. Rad1 {[%emt 0:02:03]} Bf8 {[%emt 0:03:20]} 16. Rfe1 {[%emt 0:19:44]} Qb6 {[%emt 0:14:35]} 17. Bf1 {[%emt 0:22:41]} (17. g4 $5 Ng7 $8 18. Bxb5 cxb5 19. Nxd5 $11) 17... Rad8 {[%emt 0:03:17]} 18. e4 {[%emt 0:08:25]} b4 {[%emt 0:13:44]} 19. Na4 {[%emt 0:00:36]} Qa5 {[%emt 0:00:04]} 20. exd5 {[%emt 0:01:09]} cxd5 {[%emt 0:00:07]} 21. b3 {[%emt 0:00:05]} Nf4 {[%emt 0:01:29]} 22. Kh2 {[%emt 0:08:41]} (22. Qd2 $11 {remains equal.} Ne6 23. Qxd5) 22... Ne6 $17 {[%emt 0:01:11]} 23. Nd4 $2 {[%emt 0:02:02] [#] White does not recover from this.} (23. g3 $17) 23... Nxd4 $1 $19 {[%emt 0:04:46]} 24. Rxd4 {[%emt 0:00:05]} Bxa4 {[%emt 0:00:04]} 25. bxa4 {[%emt 0:00:03] [#]} b3 $1 {[%emt 0:00:02][%mdl 512]} 26. Qd1 {[%emt 0:00:11]} (26. Qb1 bxa2) 26... bxa2 {[%emt 0:03:34][%cal Oe8e5] aiming for ...Rxe5!} 27. Re2 {[%emt 0:00:31]} Rxe5 {[%emt 0:01:09]} 28. Rxa2 {[%emt 0:00:07] White is weak on the dark squares} (28. Rxe5 $2 {too greedy.} Bd6 29. Kg1 Bxe5 $19) (28. Rdd2 {nothing else works.}) 28... Re1 {[%emt 0:00:06] Black is clearly winning.} 29. Qd3 {[%emt 0:00:19]} Bg7 {[%emt 0:01:32]} 30. Rh4 {[%emt 0:00:56]} Bf6 {[%emt 0:01:14]} 31. Rg4 {[%emt 0:00:14]} h5 {[%emt 0:00:08]} 32. Rxg6+ {[%emt 0:00:46]} fxg6 {[%emt 0:00:02]} 33. Qxg6+ {[%emt 0:00:06]} Bg7 {[%emt 0:00:04]} 34. Bd3 {[%emt 0:00:29]} Qc7+ {[%emt 0:02:17]} 35. f4 {[%emt 0:00:05]} (35. g3 $142) 35... Qxf4+ {[%emt 0:00:28]} 36. g3 {[%emt 0:00:03]} Qh6 {[%emt 0:01:58] Weighted Error Value: White=0.49/Black=0.09 (flawless) .  Loses game:     	White=1     	---        Mistake:       	White=3     	---        Inaccurate:     	---       	Black=1      OK:         	White=8     	Black=10     Best:        	White=2     	Black=5      Strong:       	---       	Black=1      Brilliant:      	---       	Black=1} 0-1

[Event "7th Sharjah Masters 2024"]
[Site "Sharjah"]
[Date "2024.05.16"]
[Round "3.18"]
[White "Mchedlishvili, Mikheil"]
[Black "Deac, Bogdan-Daniel"]
[Result "1/2-1/2"]
[ECO "D37"]
[WhiteElo "2569"]
[BlackElo "2693"]
[Annotator "RC"]
[PlyCount "123"]
[EventDate "2024.05.13"]
[EventType "swiss"]
[EventCountry "UAE"]
[SourceTitle "playchess.com"]
[Source "ChessBase"]
[SourceQuality "1"]
[TimeControl "5400+30"]

1. d4 {[%emt 1:31:00]} Nf6 {[%emt 1:31:00]} 2. c4 {[%emt 0:00:30]} e6 {[%emt 0:00:30]} 3. Nf3 {[%emt 0:00:30]} d5 {[%emt 0:00:30]} 4. Nc3 {[%emt 0:00:30]} Nbd7 {[%emt 0:00:30]} 5. Qc2 {[%emt 0:00:30]} Bb4 {[%emt 0:00:30]} 6. g3 {[%emt 0:00:30]} dxc4 {[%emt 0:00:30]} 7. Bg2 {[%emt 0:00:30]} c6 {[%emt 0:00:30]} 8. O-O {[%emt 0:00:30]} Qe7 {[%emt 0:00:30]} 9. Ne5 {[%emt 0:00:30]} Nb6 {[%emt 0:00:30]} 10. Bg5 {[%emt 0:00:30]} h6 {[%emt 0:00:30]} 11. Bxf6 {[%emt 0:00:30]} gxf6 {[%emt 0:00:30]} 12. Nf3 {[%emt 0:00:30]} e5 {[%emt 0:00:30]} 13. Rad1 {[%emt 0:00:30]} Bd7 {[%emt 0:00:30]} 14. d5 {[%emt 0:00:30]} O-O-O {[%emt 0:00:30]} 15. Nh4 {[%emt 0:00:30]} Bxc3 {[%emt 0:00:30]} 16. d6 {[%emt 0:00:30]} Qf8 {[%emt 0:00:30]} 17. Qxc3 {[%emt 0:00:30]} Be6 {[%emt 0:00:30]} 18. Qa3 Kb8 {[%emt 0:00:30]} 19. f4 {[%emt 0:01:00]} exf4 {[%emt 0:00:30]} 20. Rxf4 {[%emt 0:00:30]} Rg8 {[%emt 0:00:30]} 21. Rxf6 {[%emt 0:00:30]} Nc8 {[%emt 0:00:30]} 22. Qe3 {[%emt 0:00:30]} Rxd6 {[%emt 0:00:30]} 23. Rxd6 {[%emt 0:00:30]} Qxd6 {[%emt 0:00:30]} 24. Nf5 {[%emt 0:00:30]} Qd8 {[%emt 0:00:30]} 25. Qf4+ {[%emt 0:00:30]} Ka8 {[%emt 0:00:30]} 26. Nxh6 {[%emt 0:00:30]} Re8 {[%emt 0:00:30]} 27. Nxf7 {[%emt 0:00:30]} Qb6+ {[%emt 0:00:30]} 28. e3 {[%emt 0:00:30]} Qxb2 {[%emt 0:00:30]} 29. Ng5 {[%emt 0:00:30]} Bd7 {[%emt 0:00:30]} 30. Qd4 {[%emt 0:00:30]} Qc1+ {[%emt 0:00:30]} 31. Bf1 {[%emt 0:00:30]} Nb6 {[%emt 0:00:30]} 32. Ne4 {[%emt 0:00:30]} Nd5 {[%emt 0:00:30]} 33. Rf7 {[%emt 0:00:30]} Be6 {[%emt 0:00:30]} 34. Rxb7 {[%emt 0:00:30]} Qxe3+ {[%emt 0:00:30]} 35. Qxe3 {[%emt 0:00:30]} Nxe3 36. Rb1 {[%emt 0:00:30]} Bf5 {[%emt 0:01:00]} 37. Nd6 {[%emt 0:00:30]} Bxb1 {[%emt 0:00:30]} 38. Nxe8 {[%emt 0:00:30]} c3 {[%emt 0:00:30]} 39. Nc7+ {[%emt 0:00:30]} Kb7 {[%emt 0:00:30]} 40. Ne6 {[%emt 0:00:30]} Bxa2 {[%emt 0:00:30]} 41. Nc5+ {[%emt 0:00:30]} Kc7 {[%emt 0:00:30]} 42. Be2 {[%emt 0:00:30]} c2 {[%emt 0:00:30]} 43. Nd3 a5 {[%emt 0:00:30]} 44. Kf2 {[%emt 0:01:00]} Nd5 {[%emt 0:00:30]} 45. Nc1 {[%emt 0:00:30]} Nb4 {[%emt 0:00:30]} 46. Ke3 {[%emt 0:00:30]} a4 {[%emt 0:00:30]} 47. Kd2 {[%emt 0:00:30]} Bd5 {[%emt 0:00:30]} 48. Kc3 {[%emt 0:00:30]} a3 {[%emt 0:00:30]} 49. h4 {[%emt 0:00:30]} Kd6 {[%emt 0:00:30]} 50. h5 {[%emt 0:00:30]} a2 {[%emt 0:00:30]} 51. Kb2 {[%emt 0:00:30]} Ke7 {[%emt 0:00:30]} 52. h6 {[%emt 0:00:30]} Kf6 {[%emt 0:00:30]} 53. g4 {[%emt 0:00:30]} c5 {[%emt 0:00:30]} 54. g5+ {[%emt 0:00:30]} Kg6 {[%emt 0:00:30]} 55. Bh5+ {[%emt 0:00:30]} Kh7 {[%emt 0:00:30]} 56. Bg4 {[%emt 0:00:30]} Be4 {[%emt 0:00:30]} 57. Be6 {[%emt 0:00:30]} Kg6 {[%emt 0:00:30]} 58. Bg8 {[%emt 0:00:30]} Bf5 {[%emt 0:00:30]} 59. Nxa2 {[%emt 0:00:30]} Nc6 {[%emt 0:00:30]} 60. Nc1 {[%emt 0:00:30]} Ne7 {[%emt 0:00:30]} 61. Bb3 {[%emt 0:00:30]} Kxg5 {[%emt 0:00:30]} 62. Bxc2 {[%emt 0:00:30]} 1/2-1/2

[Event "7th Sharjah Masters 2024"]
[Site "Sharjah"]
[Date "2024.05.16"]
[Round "3.19"]
[White "Sjugirov, Sanan"]
[Black "Muradli, Mahammad"]
[Result "0-1"]
[ECO "B90"]
[WhiteElo "2692"]
[BlackElo "2561"]
[Annotator "TA"]
[PlyCount "122"]
[EventDate "2024.05.13"]
[EventType "swiss"]
[EventCountry "UAE"]
[SourceTitle "playchess.com"]
[Source "ChessBase"]
[SourceQuality "1"]
[TimeControl "5400+30"]

{[%evp 42,122,-43,-52,-60,-66,-43,-66,-54,-87,-75,-68,0,-66,-56,-56,-51,-41,-45,-52,-52,-51,-40,-71,-72,-64,-70,-64,-68,-90,-82,-124,-117,-162,-143,-143,-133,-175,-169,-405,-479,-443,-455,-508,-332,-300,-160,-302,-222,-363,-358,-388,-358,-314,-179,-558,-524,-566,-417,-5189,-5177,-29976,-29977,-29975,-29978,-29974,-29975,-29988,-29984,-29984,-29985,-29985,-29978,-29986,-29987,-29987,-29987,-29991,-29988,-29988,-29989,-29990,-29991]} 1. e4 {[%emt 1:31:00]} c5 {[%emt 1:31:00]} 2. Nf3 {[%emt 0:00:30]} d6 {[%emt 0:00:30]} 3. d4 {[%emt 0:00:30]} cxd4 {[%emt 0:00:30]} 4. Nxd4 {[%emt 0:00:30]} Nf6 {[%emt 0:00:30]} 5. Nc3 {[%emt 0:00:30]} a6 {[%emt 0:00:30]} 6. Be3 {[%emt 0:00:30]} e5 {[%emt 0:00:30]} 7. Nb3 {[%emt 0:00:30]} Be6 {[%emt 0:00:30]} 8. f3 {[%emt 0:00:30]} h5 {[%emt 0:00:30]} 9. Be2 {[%emt 0:00:30] B90: Sicilian Najdorf: Unusual White 6th moves, 6 Be3 Ng4 and 6 Be3 e5.} Nbd7 {[%emt 0:00:30]} 10. f4 {[%emt 0:00:30]} Rc8 $5 {[%emt 0:00:30][%mdl 4] An interesting side line.} 11. f5 {[%emt 0:00:30]} Bc4 {[%emt 0:00:30]} 12. Bxc4 {[%emt 0:00:30]} Rxc4 {[%emt 0:00:30]} 13. Qd3 {[%emt 0:00:30]} Qc8 {[%emt 0:00:30]} 14. O-O {[%emt 0:00:30]} Be7 $146 {[%emt 0:00:30]} ({Predecessor:} 14... b5 15. Na5 Rc7 16. Nd5 Nxd5 17. exd5 Be7 18. a4 O-O 19. axb5 axb5 20. c3 Nf6 {1-0 Drygalov,A (2502)-Zemlyanskii,I (2237) Cheliabinsk Lozovatsky Memorial-A 2023 (6)}) 15. h3 {[%emt 0:00:30]} b5 {[%emt 0:00:30]} 16. a3 {[%emt 0:00:30]} O-O {[%emt 0:00:30]} 17. Bf2 {[%emt 0:00:30]} Qc7 {[%emt 0:00:30]} 18. Qf3 {[%emt 0:00:30]} Rc8 {[%emt 0:00:30]} 19. Rfe1 {[%emt 0:00:30]} Qb8 {[%emt 0:00:30]} 20. Kh1 {[%emt 0:00:30]} Bd8 {[%emt 0:00:30]} 21. Qd3 {[%emt 0:00:30]} Bb6 {[%emt 0:00:30]} 22. Bxb6 {[%emt 0:00:30]} Nxb6 {[%emt 0:00:30]} 23. Nd2 $1 {[%emt 0:00:30]} R4c6 {[%emt 0:00:30]} 24. Rab1 {[%emt 0:00:30]} Nc4 {[%emt 0:00:30]} 25. Nxc4 {[%emt 0:00:30]} Rxc4 {[%emt 0:00:30]} (25... bxc4 $6 26. Qe2 $11) 26. Rbd1 {[%emt 0:00:30]} R4c6 {[%emt 0:00:30]} (26... b4 $15 27. axb4 Rxb4 (27... Qxb4 28. Qxd6 Qxb2 29. Nd5 $15)) 27. Re2 {[%emt 0:00:30]} (27. Qe3 $11) 27... b4 $15 {[%emt 0:00:30]} 28. axb4 {[%emt 0:00:30]} Qxb4 {[%emt 0:00:30]} 29. Nd5 {[%emt 0:00:30]} Nxd5 {[%emt 0:00:30]} 30. exd5 {[%emt 0:00:30]} Rc4 {[%emt 0:00:30]} 31. c3 {[%emt 0:00:30]} Qb5 {[%emt 0:00:30]} 32. Rf2 {[%emt 0:00:30]} f6 {[%emt 0:00:30]} 33. Qe2 {[%emt 0:00:30]} h4 {[%emt 0:00:30]} 34. Qh5 {[%emt 0:00:30]} a5 {[%emt 0:00:30]} 35. Kh2 {[%emt 0:00:30]} a4 {[%emt 0:00:30]} 36. Rdd2 {[%emt 0:00:30]} Qe8 {[%emt 0:00:30]} 37. Qe2 {[%emt 0:00:30]} a3 {[%emt 0:00:30]} 38. bxa3 {[%emt 0:00:30]} Rxc3 {[%emt 0:00:30]} 39. Ra2 {[%emt 0:00:30]} e4 {[%emt 0:00:30]} 40. Rf1 $2 {[%emt 0:00:30]} (40. Rf4 e3 41. Qf3) 40... Qe5+ $19 {[%emt 0:00:30]} 41. Kh1 {[%emt 0:00:30]} Rc1 {[%emt 0:00:30]} ({Much less strong is} 41... Qxd5 42. Rd1 Rc1 (42... Qxf5 $2 43. Rad2 $19) 43. Ra1 Rxa1 44. Rxa1) 42. a4 {[%emt 0:00:30]} Qxd5 {[%emt 0:00:30]} 43. Ra1 {[%emt 0:00:30]} Rxf1+ {[%emt 0:00:30]} (43... R8c2 $19 {( -> ...Rxa1)} 44. Qh5 Rxf1+ 45. Rxf1 Qe5) 44. Qxf1 {[%emt 0:00:30]} (44. Rxf1 $17 {was forced.} Re8 45. Rd1) 44... Ra8 {[%emt 0:00:30]} 45. Qe1 {[%emt 0:00:30]} (45. Rd1 $142 Qc5 46. Rb1) 45... Qxf5 $19 {[%emt 0:00:30]} 46. a5 {[%emt 0:00:30]} d5 {[%emt 0:00:30]} 47. a6 {[%emt 0:00:30]} d4 {[%emt 0:00:30]} (47... Qe5 $142 48. a7 e3) 48. a7 $2 {[%emt 0:00:30] [#]} (48. Qb4) 48... e3 $1 $19 {[%emt 0:00:30]} 49. Qxh4 {[%emt 0:00:30]} Qe5 {[%emt 0:00:30]} 50. Qe1 {[%emt 0:00:30]} (50. Qg4 $142 f5 51. Qf3) 50... d3 $19 {[%emt 0:00:30]} 51. Ra3 {[%emt 0:00:30]} d2 {[%emt 0:00:30]} 52. Qe2 {[%emt 0:00:30]} Qd4 {[%emt 0:00:30]} 53. Rd3 {[%emt 0:00:30]} Qxa7 {[%emt 0:00:30]} 54. Qg4 {[%emt 0:00:30]} Qa1+ {[%emt 0:00:30]} 55. Kh2 {[%emt 0:00:30]} Qe5+ {[%emt 0:00:30]} 56. g3 {[%emt 0:00:30]} f5 {[%emt 0:00:30]} 57. Qc4+ {[%emt 0:00:30]} Kh7 {[%emt 0:00:30]} 58. Rd4 {[%emt 0:00:30]} Ra6 {[%emt 0:00:30]} 59. Rd8 {[%emt 0:00:30]} Re6 {[%emt 0:00:30]} 60. Qe2 {[%emt 0:00:30]} f4 {[%emt 0:00:30]} 61. Qd3+ {[%emt 0:00:30]} Qe4 {[%emt 0:00:30]} 0-1

[Event "7th Sharjah Masters 2024"]
[Site "Sharjah"]
[Date "2024.05.16"]
[Round "3.20"]
[White "Blohberger, Felix"]
[Black "Nihal Sarin"]
[Result "1/2-1/2"]
[ECO "E08"]
[WhiteElo "2506"]
[BlackElo "2680"]
[Annotator "TA"]
[PlyCount "38"]
[EventDate "2024.05.13"]
[EventType "swiss"]
[EventCountry "UAE"]
[SourceTitle "playchess.com"]
[Source "ChessBase"]
[SourceQuality "1"]
[TimeControl "5400+30"]

{[%evp 19,38,0,0,0,27,26,29,22,18,18,33,21,16,15,37,29,35,41,54,0,0]} 1. d4 {[%emt 1:31:00]} Nf6 {[%emt 1:31:00]} 2. c4 {[%emt 0:00:30]} e6 {[%emt 0:00:30]} 3. Nf3 {[%emt 0:00:30]} d5 {[%emt 0:00:30]} 4. g3 {[%emt 0:00:30]} Bb4+ {[%emt 0:00:30]} 5. Bd2 {[%emt 0:00:30]} Be7 {[%emt 0:00:30]} 6. Bg2 {[%emt 0:00:30]} O-O {[%emt 0:00:30]} 7. O-O {[%emt 0:00:30]} c6 {[%emt 0:00:30]} 8. Qc2 {[%emt 0:00:30]} Nbd7 {[%emt 0:00:30]} 9. Bf4 {[%emt 0:00:30]} b6 {[%emt 0:00:30]} 10. cxd5 {[%emt 0:00:30]} cxd5 {[%emt 0:00:30]} 11. Rc1 {[%emt 0:00:30]} a5 {[%emt 0:00:30]} 12. Nc3 {[%emt 0:00:30]} Ba6 {[%emt 0:00:30]} 13. a4 {[%emt 0:00:30] White has an edge.} Rc8 {[%emt 0:00:30]} 14. Qd1 {[%emt 0:00:30]} Nh5 {[%emt 0:00:30]} 15. e3 {[%emt 0:00:30]} Nxf4 {[%emt 0:00:30]} 16. exf4 {[%emt 0:00:30]} g6 {[%emt 0:00:30]} 17. Bf1 {[%emt 0:00:30]} Bxf1 {[%emt 0:00:30]} 18. Kxf1 {[%emt 0:00:30]} Nf6 {[%emt 0:00:30]} 19. Qd3 {[%emt 0:00:30] Wards off Ne4} ({White should try} 19. Rc2 $14) 19... Qc7 {[%emt 0:00:30] Weighted Error Value: White=0.10 (very precise) /Black=0.08 (flawless) .  Mistake:       	White=1     	---        Inaccurate:     	---       	Black=1      OK:         	White=2     	Black=4} 1/2-1/2

[Event "7th Sharjah Masters 2024"]
[Site "Sharjah"]
[Date "2024.05.16"]
[Round "3.21"]
[White "Martirosyan, Haik M."]
[Black "Sanal, Vahap"]
[Result "1/2-1/2"]
[ECO "E16"]
[WhiteElo "2679"]
[BlackElo "2566"]
[Annotator "TA"]
[PlyCount "116"]
[EventDate "2024.05.13"]
[EventType "swiss"]
[EventCountry "UAE"]
[SourceTitle "playchess.com"]
[Source "ChessBase"]
[SourceQuality "1"]
[TimeControl "5400+30"]

{[%evp 15,116,20,31,25,31,18,32,0,0,0,0,-1,0,0,0,-16,0,0,0,0,18,0,0,0,0,0,0,0,0,10,14,0,7,0,0,0,0,-14,-5,-17,0,0,0,0,17,17,17,15,79,77,85,72,72,72,79,72,72,70,88,44,60,60,90,83,94,85,85,46,46,46,46,46,46,46,46,46,46,46,46,46,46,46,46,0,0,0,0,0,6,11,11,13,13,13,13,0,13,0,14,0,6,0,14]} 1. d4 {[%emt 0:00:12]} Nf6 {[%emt 0:00:08]} 2. c4 {[%emt 0:00:17]} e6 {[%emt 0:00:16]} 3. Nf3 {[%emt 0:00:14]} b6 {[%emt 0:00:10]} 4. g3 {[%emt 0:00:42]} Bb7 {[%emt 0:00:08]} 5. Bg2 {[%emt 0:00:06]} Bb4+ {[%emt 0:00:17]} 6. Bd2 {[%emt 0:00:22]} Bxd2+ {[%emt 0:00:13]} 7. Qxd2 {[%emt 0:00:56]} O-O {[%emt 0:00:12]} 8. O-O {[%emt 0:06:35]} d6 {[%emt 0:00:35]} 9. Qd3 {[%emt 0:07:05]} c5 {[%emt 0:01:54]} 10. Nc3 {[%emt 0:03:25]} Nc6 {[%emt 0:17:00]} 11. e4 {[%emt 0:03:56] White is slightly better.} e5 {[%emt 0:05:27]} 12. dxe5 {[%emt 0:03:49]} dxe5 {[%emt 0:00:25]} 13. Nd5 {[%emt 0:01:16]} Re8 {[%emt 0:02:51]} 14. Rae1 {[%emt 0:15:36]} Qd6 {[%emt 0:04:58]} 15. Nd2 {[%emt 0:04:39]} Nd4 {[%emt 0:00:35]} 16. f4 {[%emt 0:01:18]} Nxd5 {[%emt 0:11:14]} 17. cxd5 {[%emt 0:04:40]} f6 {[%emt 0:01:23]} 18. Nc4 {[%emt 0:03:26]} Qd7 {[%emt 0:08:05]} 19. fxe5 {[%emt 0:01:06]} fxe5 {[%emt 0:00:05]} 20. Rf2 {[%emt 0:02:13]} Ba6 {[%emt 0:08:02]} 21. Ref1 {[%emt 0:01:20]} ({But not} 21. Nxe5 $2 Qa4 22. Qc3 Rxe5 $19) 21... Qa4 {[%emt 0:14:04][%csl LRa2,LRc4]} 22. b3 {[%emt 0:03:34]} Bxc4 {[%emt 0:01:04]} 23. bxc4 {[%emt 0:01:38]} Qd7 {[%emt 0:00:28]} 24. Qd1 {[%emt 0:02:13]} Qe7 {[%emt 0:22:56]} 25. Qg4 {[%emt 0:05:47]} Rf8 {[%emt 0:00:00]} 26. h4 {[%emt 0:02:03]} Rxf2 {[%emt 0:00:00]} 27. Rxf2 {[%emt 0:00:03]} Rd8 {[%emt 0:00:00][%cal Ba8d8,Bd8d6,Bd6f6][%mdl 32]} 28. h5 {[%emt 0:02:26]} h6 {[%emt 0:00:00]} 29. Bh3 {[%emt 0:01:49]} Rd6 {[%emt 0:00:00]} 30. Kg2 {[%emt 0:01:48]} Qd8 {[%emt 0:00:00]} 31. a4 {[%emt 0:00:54] Black is weak on the light squares} a5 {[%emt 0:00:00] [#]} (31... Qe7 $11 {remains equal.}) 32. Qc8 $1 $16 {[%emt 0:01:01]} Qxc8 {[%emt 0:00:00]} 33. Bxc8 {[%emt 0:00:03][%mdl 4096] Endgame. KRB-KRN} Rf6 {[%emt 0:00:00]} 34. Bf5 {[%emt 0:01:10]} Kf8 {[%emt 0:00:00]} 35. g4 {[%emt 0:01:08]} Ke7 {[%emt 0:00:00]} 36. Kg3 {[%emt 0:02:23]} Rf8 {[%emt 0:00:00]} 37. Kh4 {[%emt 0:00:50]} Rf6 {[%emt 0:00:00]} 38. g5 {[%emt 0:01:57]} hxg5+ {[%emt 0:00:00]} 39. Kxg5 {[%emt 0:00:01]} Kd6 {[%emt 0:00:00]} 40. Kg4 {[%emt 0:02:03]} Ke7 {[%emt 0:00:00]} 41. Rg2 {[%emt 0:01:30]} ({Reject} 41. Kg5 $6 Kd6 $11) 41... Kf8 {[%emt 0:00:00]} 42. Rg3 {[%emt 0:02:12]} Ne2 {[%emt 0:00:00]} 43. Re3 {[%emt 0:00:05]} Nd4 {[%emt 0:00:00]} 44. Kg5 {[%emt 0:00:10]} Ke7 {[%emt 0:00:00]} 45. Rh3 {[%emt 0:01:01]} Kd6 {[%emt 0:01:22]} 46. Bg4 {[%emt 0:01:58]} Ke7 {[%emt 0:00:21]} 47. Rh1 {[%emt 0:00:26]} Kd6 {[%emt 0:01:59]} 48. Bd1 {[%emt 0:00:53]} Ke7 $1 {[%emt 0:00:07]} 49. h6 {[%emt 0:01:22]} gxh6+ {[%emt 0:02:46] The position is equal.} 50. Rxh6 {[%emt 0:00:02]} Rxh6 {[%emt 0:02:52]} 51. Kxh6 $11 {[%emt 0:00:06] KB-KN} Kf6 {[%emt 0:00:20]} 52. Kh5 {[%emt 0:00:06]} Kg7 {[%emt 0:00:18]} 53. Kg5 {[%emt 0:02:58]} Kf7 {[%emt 0:00:04]} 54. Kh4 {[%emt 0:00:21] [#] Kg5 would now be deadly.} Kf6 {[%emt 0:00:41]} 55. Kh5 {[%emt 0:00:13] Strongly threatening Kh6.} (55. Kg4 $5) 55... Kg7 {[%emt 0:00:03]} 56. Kg5 {[%emt 0:01:42]} Kf7 {[%emt 0:00:04]} 57. Kh6 {[%emt 0:05:18] Kg5 is the strong threat.} Kf6 {[%emt 0:00:02]} 58. Kh5 {[%emt 0:02:12] Black must now prevent Kh6.} Kg7 $1 {[%emt 0:00:49] Weighted Error Value: White=0.06 (flawless) /Black=0.06 (flawless) .  Mistake:       	---       	Black=1      Inaccurate:     	White=4     	Black=1      OK:         	White=20    	Black=24     Best:        	---       	Black=3      Strong:       	White=1     	Black=2} 1/2-1/2

[Event "7th Sharjah Masters 2024"]
[Site "Sharjah"]
[Date "2024.05.16"]
[Round "3.22"]
[White "Sadhwani, Raunak"]
[Black "Kadric, Denis"]
[Result "1/2-1/2"]
[ECO "D20"]
[WhiteElo "2654"]
[BlackElo "2558"]
[Annotator "TA"]
[PlyCount "27"]
[EventDate "2024.05.13"]
[EventType "swiss"]
[EventCountry "UAE"]
[SourceTitle "playchess.com"]
[Source "ChessBase"]
[SourceQuality "1"]
[TimeControl "5400+30"]

{[%evp 16,27,13,13,18,19,13,0,0,0,10,0,20,22]} 1. d4 {[%emt 0:00:02]} d5 {[%emt 0:00:08]} 2. c4 {[%emt 0:00:45]} dxc4 {[%emt 0:00:06]} 3. e3 {[%emt 0:01:53]} e5 {[%emt 0:00:09]} 4. Bxc4 {[%emt 0:00:38]} exd4 {[%emt 0:00:03]} 5. exd4 {[%emt 0:00:54]} Bd6 {[%emt 0:00:08]} 6. Nf3 {[%emt 0:01:24]} Nf6 {[%emt 0:00:05]} 7. O-O {[%emt 0:00:45]} O-O {[%emt 0:00:04]} 8. Bg5 {[%emt 0:03:26][%cal Bc1g5,Bg5h4,Bh4f6][%mdl 32]} Nc6 {[%emt 0:00:52]} 9. Nc3 {[%emt 0:10:15] The position is equal.} h6 {[%emt 0:00:42]} 10. Bh4 {[%emt 0:01:43]} Bg4 {[%emt 0:00:13]} 11. h3 {[%emt 0:06:01]} Bxf3 {[%emt 0:02:42]} 12. Qxf3 {[%emt 0:02:51]} Nxd4 {[%emt 0:00:06] Excellent horsemanship.} 13. Qxb7 {[%emt 0:00:49]} Nf5 {[%emt 0:04:11]} 14. Bxf6 {[%emt 0:02:04] An uneventful encounter.   Weighted Error Value: White=0.06 (flawless) /Black=0.06 (flawless) .  OK:         	White=1     	Black=2      Best:        	White=1     	---} 1/2-1/2